fUST/lending_fUST_20250624
["ID","MTS","AMOUNT","RATE_DAILY","PERIOD"]
[367225911,1750707050373,-460.0,0.00020084,2]
[367225912,1750707050383,-460.0,0.00020084,2]
[367225913,1750707050394,-460.0,0.00020084,2]
[367225914,1750707050404,-460.0,0.00020084,2]
[367225915,1750707050415,-460.0,0.00020084,2]
[367225916,1750707050426,-460.0,0.00020084,2]
[367225917,1750707050437,-460.0,0.00020084,2]
[367225918,1750707050449,-460.0,0.00020084,2]
[367225919,1750707050459,-460.0,0.00020084,2]
[367225920,1750707050470,-460.0,0.00020084,2]
[367225921,1750707050480,-460.0,0.00020084,2]
[367225922,1750707050490,-460.0,0.00020084,2]
[367225923,1750707050501,-518.39,0.00020084,2]
[367225924,1750707050511,-460.0,0.00020084,2]
[367225925,1750707050522,-932.58,0.00020084,2]
[367225926,1750707050532,-460.0,0.00020084,2]
[367225927,1750707050543,-1357.79,0.00020084,2]
[367225928,1750707050554,-620.87,0.00020084,2]
[367225929,1750707050827,-1338.09,0.00020084,2]
[367225930,1750707050848,-757.63,0.00020084,2]
[367225931,1750707050858,-948.37,0.00020084,2]
[367225932,1750707050867,-481.66,0.00020084,2]
[367225933,1750707050877,-1073.71,0.00020084,2]
[367225934,1750707050886,-289.54023072,0.00020084,2]
[367225935,1750707050896,-460.0,0.00020084,2]
[367225936,1750707050905,-563.95,0.00020084,2]
[367225937,1750707050915,-460.0,0.00020084,2]
[367225938,1750707050925,-460.0,0.00020084,2]
[367225939,1750707050935,-460.0,0.00020084,2]
[367225940,1750707050944,-500.0,0.00020084,2]
[367225941,1750707050954,-460.0,0.00020085,2]
[367225942,1750707050963,-460.0,0.00020085,2]
[367225943,1750707050973,-460.0,0.00020085,2]
[367225944,1750707050983,-460.0,0.00020085,2]
[367225945,1750707050992,-2368.82,0.00020085,2]
[367225946,1750707051001,-2063.01,0.00020085,2]
[367225947,1750707051011,-460.0,0.00020085,2]
[367225948,1750707051020,-520.2,0.00020088,2]
[367225949,1750707051029,-622.05,0.00020088,2]
[367225950,1750707051039,-986.55,0.00020088,2]
[367225951,1750707051049,-460.0,0.00020088,2]
[367225952,1750707051058,-490.56175889,0.00020088,2]
[367225953,1750707051068,-461.0,0.00020088,2]
[367225954,1750707051078,-460.0,0.00020088,2]
[367225955,1750707051087,-460.0,0.00020088,2]
[367225956,1750707051096,-500.0,0.00020088,2]
[367225957,1750707051106,-942.79,0.00020088,2]
[367225958,1750707051115,-460.0,0.00020088,2]
[367225959,1750707051125,-502.22,0.00020088,2]
[367225960,1750707051135,-460.0,0.00020088,2]
[367225961,1750707051144,-873.57,0.00020088,2]
[367225962,1750707051153,-460.0,0.00020088,2]
[367225963,1750707051162,-1008.85,0.00020088,2]
[367225964,1750707051171,-487.92,0.00020088,2]
[367225965,1750707051181,-460.0,0.00020088,2]
[367225966,1750707051190,-460.0,0.00020088,2]
[367225967,1750707051200,-460.0,0.00020088,2]
[367225968,1750707051209,-460.0,0.00020088,2]
[367225969,1750707051218,-460.0,0.00020088,2]
[367225970,1750707051228,-574.23,0.00020088,2]
[367225971,1750707051237,-868.89,0.00020088,2]
[367225972,1750707051246,-460.0,0.00020088,2]
[367225973,1750707051255,-743.63,0.00020088,2]
[367225974,1750707051264,-303.85393086,0.00020088,2]
[367225975,1750707051274,-520.21,0.00020088,2]
[367225976,1750707051283,-1946.42,0.00020088,2]
[367225977,1750707051291,-460.0,0.00020088,2]
[367225978,1750707051301,-151.0,0.000201,4]
[367225979,1750707051312,-460.0,0.00020175,2]
[367225980,1750707051321,-460.0,0.00020175,2]
[367225981,1750707051330,-460.0,0.00020175,2]
[367225982,1750707051339,-478.62,0.00020175,2]
[367225983,1750707051348,-460.0,0.00020175,2]
[367225984,1750707051358,-460.0,0.00020175,2]
[367225985,1750707051367,-460.0,0.00020175,2]
[367225986,1750707051377,-811.96,0.00020175,2]
[367225987,1750707051386,-460.0,0.00020175,2]
[367225988,1750707051395,-460.0,0.00020175,2]
[367225989,1750707051404,-779.61,0.00020175,2]
[367225990,1750707051414,-524.96,0.00020175,2]
[367225991,1750707051423,-460.0,0.00020175,2]
[367225992,1750707051433,-460.0,0.00020175,2]
[367225993,1750707051442,-460.0,0.00020175,2]
[367225994,1750707051451,-460.0,0.00020175,2]
[367225995,1750707051461,-460.0,0.00020175,2]
[367225996,1750707051470,-460.0,0.00020175,2]
[367225997,1750707051479,-460.0,0.00020175,2]
[367225998,1750707051488,-460.0,0.00020175,2]
[367225999,1750707051498,-460.0,0.00020175,2]
[367226000,1750707051507,-512.54,0.00020175,2]
[367226001,1750707051516,-460.0,0.00020175,2]
[367226002,1750707051525,-460.0,0.00020175,2]
[367226003,1750707051535,-460.0,0.00020175,2]
[367226004,1750707051544,-612.64,0.00020175,2]
[367226005,1750707051553,-460.0,0.00020175,2]
[367226006,1750707051564,-460.0,0.00020175,2]
[367226007,1750707051573,-460.0,0.00020175,2]
[367226008,1750707051583,-317.72299299,0.00020175,2]
[367226009,1750707051593,-243.65669,0.00020187,2]
[367226010,1750707051602,-151.0,0.000202,3]
[367226011,1750707051612,-365.8891638,0.00020233,2]
[367226012,1750707051622,-460.0,0.00020251,2]
[367226013,1750707051632,-460.0,0.00020251,2]
[367226014,1750707051641,-460.0,0.00020251,2]
[367226015,1750707051651,-2693.31,0.00020251,2]
[367226016,1750707051661,-460.0,0.00020251,2]
[367226017,1750707051670,-4587.93,0.00020251,2]
[367226018,1750707051679,-3825.13,0.00020251,2]
[367226019,1750707051697,-460.0,0.00020251,2]
[367226020,1750707051710,-168.0,0.00020281,2]
[367226021,1750707051721,-384.33775527,0.00020294,2]
[367226022,1750707051731,-151.0,0.000203,4]
[367226023,1750707051742,-1366.0,0.00020302,2]
[367226024,1750707051753,-5205.0,0.00020348,2]
[367226025,1750707051763,-460.0,0.00020353,2]
[367226026,1750707051773,-460.0,0.00020353,2]
[367226027,1750707051783,-460.0,0.00020353,2]
[367226028,1750707051793,-460.0,0.00020353,2]
[367226029,1750707051803,-460.0,0.00020354,2]
[367226030,1750707051813,-460.0,0.00020354,2]
[367226031,1750707051825,-460.0,0.00020354,2]
[367226032,1750707051835,-460.0,0.00020354,2]
[367226033,1750707051846,-460.0,0.00020354,2]
[367226034,1750707051855,-460.0,0.00020354,2]
[367226035,1750707051867,-2648.3,0.00020354,2]
[367226036,1750707051878,-2744.44,0.00020354,2]
[367226037,1750707051888,-192.86029431,0.00020355,2]
[367226038,1750707051897,-2378.74,0.00020355,2]
[367226039,1750707051908,-835.11,0.00020355,2]
[367226040,1750707051918,-460.99,0.00020355,2]
[367226041,1750707051928,-460.0,0.00020355,2]
[367226042,1750707051938,-1874.63,0.00020355,2]
[367226043,1750707051947,-3339.64,0.00020355,2]
[367226044,1750707051957,-596.66,0.00020355,2]
[367226045,1750707051967,-1527.92,0.00020355,2]
[367226046,1750707051977,-1339.25,0.00020355,2]
[367226047,1750707051987,-843.39,0.00020355,2]
[367226048,1750707051997,-840.53,0.00020355,2]
[367226049,1750707052007,-460.0,0.00020355,2]
[367226050,1750707052018,-1113.1,0.00020355,2]
[367226051,1750707052027,-987.19,0.00020355,2]
[367226052,1750707052037,-483.08,0.00020355,2]
[367226053,1750707052047,-460.0,0.00020356,2]
[367226054,1750707052057,-460.0,0.00020356,2]
[367226055,1750707052069,-460.0,0.00020356,2]
[367226056,1750707052084,-614.13,0.00020356,2]
[367226057,1750707052094,-460.0,0.00020356,2]
[367226058,1750707052104,-460.0,0.00020356,2]
[367226059,1750707052113,-460.0,0.00020356,2]
[367226060,1750707052125,-460.0,0.00020356,2]
[367226061,1750707052135,-508.85404565,0.00020356,2]
[367226062,1750707052145,-460.0,0.00020356,2]
[367226063,1750707052154,-460.0,0.00020356,2]
[367226064,1750707052164,-1831.18,0.00020356,2]
[367226065,1750707052174,-532.28,0.00020356,2]
[367226066,1750707052183,-664.54,0.00020356,2]
[367226067,1750707052192,-460.0,0.00020356,2]
[367226068,1750707052202,-460.0,0.00020356,2]
[367226069,1750707052211,-549.41,0.00020356,2]
[367226070,1750707052221,-460.0,0.00020356,2]
[367226071,1750707052230,-1376.04,0.00020356,2]
[367226072,1750707052240,-460.0,0.00020356,2]
[367226073,1750707052249,-904.86,0.00020356,2]
[367226074,1750707052258,-870.43,0.00020356,2]
[367226075,1750707052268,-460.0,0.00020356,2]
[367226076,1750707052278,-460.0,0.00020356,2]
[367226077,1750707052288,-762.46,0.00020356,2]
[367226078,1750707052298,-761.2,0.00020356,2]
[367226079,1750707052307,-460.0,0.00020356,2]
[367226080,1750707052317,-460.0,0.00020356,2]
[367226081,1750707052330,-714.87,0.00020356,2]
[367226082,1750707052340,-3694.91,0.00020356,2]
[367226083,1750707052350,-487.35,0.00020356,2]
[367226084,1750707052359,-460.0,0.00020356,2]
[367226085,1750707052369,-460.0,0.00020356,2]
[367226086,1750707052378,-602.64,0.00020356,2]
[367226087,1750707052388,-1519.11,0.00020356,2]
[367226088,1750707052398,-1033.82,0.00020356,2]
[367226089,1750707052408,-666.37,0.00020356,2]
[367226090,1750707052417,-483.72,0.00020356,2]
[367226091,1750707052427,-460.0,0.00020356,2]
[367226092,1750707052436,-460.0,0.00020356,2]
[367226093,1750707052447,-460.0,0.00020357,2]
[367226094,1750707052456,-460.0,0.00020357,2]
[367226095,1750707052466,-460.0,0.00020357,2]
[367226096,1750707052476,-460.0,0.00020357,2]
[367226097,1750707052485,-460.0,0.00020357,2]
[367226098,1750707052495,-9304.37,0.00020357,2]
[367226099,1750707052506,-599.09,0.00020357,2]
[367226100,1750707052515,-460.0,0.00020357,2]
[367226101,1750707052525,-467.82,0.00020357,2]
[367226102,1750707052535,-1044.14,0.00020357,2]
[367226103,1750707052544,-460.0,0.00020357,2]
[367226104,1750707052554,-589.45,0.00020357,2]
[367226105,1750707052564,-1008.44,0.00020357,2]
[367226106,1750707052574,-2778.4,0.00020357,2]
[367226107,1750707052583,-460.0,0.00020357,2]
[367226108,1750707052592,-460.0,0.00020357,2]
[367226109,1750707052602,-460.0,0.00020357,2]
[367226110,1750707052611,-460.0,0.00020357,2]
[367226111,1750707052621,-975.44,0.00020357,2]
[367226112,1750707052631,-609.03,0.00020357,2]
[367226113,1750707052641,-3728.4,0.00020357,2]
[367226114,1750707052650,-460.0,0.00020357,2]
[367226115,1750707052659,-460.0,0.00020358,2]
[367226116,1750707052669,-460.0,0.00020358,2]
[367226117,1750707052678,-460.0,0.00020358,2]
[367226118,1750707052687,-460.0,0.00020358,2]
[367226119,1750707052697,-801.78,0.00020358,2]
[367226120,1750707052707,-460.0,0.00020358,2]
[367226121,1750707052717,-460.0,0.00020358,2]
[367226122,1750707052726,-460.0,0.00020358,2]
[367226123,1750707052736,-449.79514169,0.00020358,2]
[367226124,1750707052749,-460.0,0.00020358,2]
[367226125,1750707052758,-460.0,0.00020358,2]
[367226126,1750707052768,-478.7304356,0.00020358,2]
[367226127,1750707052780,-460.0,0.00020358,2]
[367226128,1750707052790,-460.0,0.00020358,2]
[367226129,1750707052800,-460.0,0.00020358,2]
[367226130,1750707052811,-460.0,0.00020358,2]
[367226131,1750707052821,-460.0,0.00020358,2]
[367226132,1750707052832,-518.39,0.00020358,2]
[367226133,1750707052842,-571.29373917,0.00020358,2]
[367226134,1750707052851,-932.58,0.00020358,2]
[367226135,1750707052861,-460.0,0.00020358,2]
[367226136,1750707052871,-1357.79,0.00020358,2]
[367226137,1750707052880,-620.87,0.00020358,2]
[367226138,1750707052890,-1338.09,0.00020358,2]
[367226139,1750707052899,-757.63,0.00020358,2]
[367226140,1750707052907,-948.37,0.00020358,2]
[367226141,1750707052917,-481.66,0.00020358,2]
[367226142,1750707052927,-1073.71,0.00020358,2]
[367226143,1750707052938,-460.0,0.00020358,2]
[367226144,1750707052948,-563.95,0.00020358,2]
[367226145,1750707052958,-460.0,0.00020358,2]
[367226146,1750707052968,-460.0,0.00020359,2]
[367226147,1750707052978,-460.0,0.00020359,2]
[367226148,1750707052987,-460.0,0.00020359,2]
[367226149,1750707052997,-2368.82,0.00020359,2]
[367226150,1750707053007,-2063.01,0.00020359,2]
[367226151,1750707053017,-460.0,0.00020359,2]
[367226152,1750707053027,-520.2,0.00020362,2]
[367226153,1750707053037,-622.05,0.00020362,2]
[367226154,1750707053047,-986.55,0.00020362,2]
[367226155,1750707053057,-460.0,0.00020362,2]
[367226156,1750707053071,-461.0,0.00020362,2]
[367226157,1750707053081,-460.0,0.00020362,2]
[367226158,1750707053091,-460.0,0.00020362,2]
[367226159,1750707053101,-500.0,0.00020362,2]
[367226160,1750707053112,-942.79,0.00020362,2]
[367226161,1750707053122,-460.0,0.00020362,2]
[367226162,1750707053131,-502.22,0.00020362,2]
[367226163,1750707053141,-460.0,0.00020362,2]
[367226164,1750707053152,-873.57,0.00020362,2]
[367226165,1750707053162,-460.0,0.00020362,2]
[367226166,1750707053172,-1008.85,0.00020362,2]
[367226167,1750707053183,-487.92,0.00020362,2]
[367226168,1750707053193,-460.0,0.00020362,2]
[367226169,1750707053203,-460.0,0.00020362,2]
[367226170,1750707053212,-460.0,0.00020362,2]
[367226171,1750707053221,-460.0,0.00020362,2]
[367226172,1750707053231,-460.0,0.00020362,2]
[367226173,1750707053241,-574.23,0.00020362,2]
[367226174,1750707053251,-868.89,0.00020362,2]
[367226175,1750707053262,-460.0,0.00020362,2]
[367226176,1750707053271,-743.63,0.00020362,2]
[367226177,1750707053281,-520.21,0.00020362,2]
[367226178,1750707053291,-1946.42,0.00020362,2]
[367226179,1750707053301,-460.0,0.00020362,2]
[367226180,1750707053312,-1165.6905873,0.00020368,2]
[367226181,1750707053322,-500.0,0.00020368,2]
[367226182,1750707053332,-500.0,0.00020368,2]
[367226183,1750707053342,-1877.31310312,0.00020377,2]
[367226184,1750707053352,-1000.0,0.00020378,2]
[367226185,1750707053361,-19473.80912849,0.00020418,2]
[367226186,1750707053589,-460.0,0.00019262,2]
[367226187,1750707053599,-5526.19087151,0.00020418,2]
[367226188,1750707053616,-207.4,0.00020418,2]
[367226189,1750707053629,-500.0,0.00020418,2]
[367226190,1750707053640,-500.0,0.00020418,2]
[367226191,1750707053651,-500.0,0.00020418,2]
[367226192,1750707053661,-500.0,0.00020418,2]
[367226193,1750707053672,-500.0,0.00020418,2]
[367226194,1750707053682,-500.0,0.00020418,2]
[367226195,1750707053692,-500.0,0.00020418,2]
[367226196,1750707053702,-500.0,0.00020418,2]
[367226197,1750707053713,-500.0,0.00020418,2]
[367226198,1750707053724,-500.0,0.00020418,2]
[367226199,1750707053735,-5205.0,0.00020421,2]
[367226200,1750707053749,-460.0,0.00020449,2]
[367226201,1750707053759,-460.0,0.00020449,2]
[367226202,1750707053769,-460.0,0.00020449,2]
[367226203,1750707053779,-478.62,0.00020449,2]
[367226204,1750707053791,-460.0,0.00020449,2]
[367226205,1750707053801,-460.0,0.00020449,2]
[367226206,1750707053812,-460.0,0.00020449,2]
[367226207,1750707053824,-811.96,0.00020449,2]
[367226208,1750707053835,-460.0,0.00020449,2]
[367226209,1750707053845,-460.0,0.00020449,2]
[367226210,1750707053855,-779.61,0.00020449,2]
[367226211,1750707053865,-524.96,0.00020449,2]
[367226212,1750707053875,-460.0,0.00020449,2]
[367226213,1750707053884,-460.0,0.00020449,2]
[367226214,1750707053895,-460.0,0.00020449,2]
[367226215,1750707053904,-460.0,0.00020449,2]
[367226216,1750707053915,-460.0,0.00020449,2]
[367226217,1750707053925,-460.0,0.00020449,2]
[367226218,1750707053935,-460.0,0.00020449,2]
[367226219,1750707053945,-460.0,0.00020449,2]
[367226220,1750707053954,-460.0,0.00020449,2]
[367226221,1750707053964,-512.54,0.00020449,2]
[367226222,1750707053975,-460.0,0.00020449,2]
[367226223,1750707053985,-460.0,0.00020449,2]
[367226224,1750707053994,-460.0,0.00020449,2]
[367226225,1750707054004,-612.64,0.00020449,2]
[367226226,1750707054014,-460.0,0.00020449,2]
[367226227,1750707054023,-460.0,0.00020449,2]
[367226228,1750707054033,-373.60968768,0.00020449,2]
[367226229,1750707054042,-836.70095952,0.00020455,2]
[367226230,1750707054263,-160.0,0.00020455,2]
[367226231,1750707054273,-230.18214666,0.00020455,2]
[367226232,1750707054282,-846.53928378,0.00020455,2]
[367226233,1750707054292,-213.63163053,0.00020455,2]
[367226234,1750707054301,-12553.69357174,0.00020455,2]
[367226235,1750707054311,-425.08510397,0.00020455,2]
[367226236,1750707054320,-160.0,0.00020455,2]
[367226237,1750707054330,-160.0,0.00020455,2]
[367226238,1750707054340,-160.0,0.00020456,2]
[367226239,1750707054349,-460.0,0.00020525,2]
[367226240,1750707054359,-460.0,0.00020525,2]
[367226241,1750707054368,-460.0,0.00020525,2]
[367226242,1750707054378,-2693.31,0.00020525,2]
[367226243,1750707054389,-893.3267446,0.00020525,2]
[367226244,1750707054710,-460.0,0.00019257,2]
[367226245,1750707054720,-460.0,0.00019536,2]
[367226246,1750707054731,-460.0,0.0001981,2]
[367226247,1750707054744,-109.02048913,0.00020084,2]
[367226248,1750707055075,-460.0,0.00019259,2]
[367226249,1750707055085,-460.0,0.0001926,2]
[367226250,1750707055095,-460.0,0.00019261,2]
[367226251,1750707055105,-169.29393935,0.00019535,2]
[367226252,1750707055116,-350.97951087,0.00020084,2]
[367226253,1750707055125,-3694.6032554,0.00020525,2]
[367226254,1750707055135,-3825.13,0.00020525,2]
[367226255,1750707055144,-460.0,0.00020525,2]
[367226256,1750707055154,-500.0,0.00020547,7]
[367226257,1750707055163,-5901.84754198,0.000206,2]
[367226258,1750707055198,-460.0,0.00019257,2]
[367226259,1750707055208,-460.0,0.00019266,2]
[367226260,1750707055217,-45103.34295108,0.000206,2]
[367226261,1750707055227,-1771.76,0.000206,2]
[367226262,1750707055235,-660.79206111,0.000206,2]
[367226263,1750707055245,-1677.92,0.000206,2]
[367226264,1750707055254,-460.0,0.00020627,2]
[367226265,1750707055264,-220.68508137,0.00020627,2]
[367226266,1750707055273,-460.0,0.00020627,2]
[367226267,1750707055282,-460.0,0.00020627,2]
[367226268,1750707055291,-460.0,0.00020628,2]
[367226269,1750707055301,-460.0,0.00020628,2]
[367226270,1750707055311,-460.0,0.00020628,2]
[367226271,1750707055320,-460.0,0.00020628,2]
[367226272,1750707055329,-460.0,0.00020628,2]
[367226273,1750707055339,-460.0,0.00020628,2]
[367226274,1750707055348,-2648.3,0.00020628,2]
[367226275,1750707055357,-2744.44,0.00020628,2]
[367226276,1750707055367,-460.0,0.00020629,2]
[367226277,1750707055376,-2378.74,0.00020629,2]
[367226278,1750707055385,-835.11,0.00020629,2]
[367226279,1750707055395,-460.99,0.00020629,2]
[367226280,1750707055405,-460.0,0.00020629,2]
[367226281,1750707055418,-1874.63,0.00020629,2]
[367226282,1750707055428,-3339.64,0.00020629,2]
[367226283,1750707055440,-596.66,0.00020629,2]
[367226284,1750707055450,-1527.92,0.00020629,2]
[367226285,1750707055460,-1339.25,0.00020629,2]
[367226286,1750707055470,-843.39,0.00020629,2]
[367226287,1750707055481,-840.53,0.00020629,2]
[367226288,1750707055490,-460.0,0.00020629,2]
[367226289,1750707055500,-1113.1,0.00020629,2]
[367226290,1750707055511,-987.19,0.00020629,2]
[367226291,1750707055521,-483.08,0.00020629,2]
[367226292,1750707055531,-162.280721,0.00020629,2]
[367226293,1750707055541,-460.0,0.0002063,2]
[367226294,1750707055551,-460.0,0.0002063,2]
[367226295,1750707055561,-460.0,0.0002063,2]
[367226296,1750707055571,-614.13,0.0002063,2]
[367226297,1750707055581,-460.0,0.0002063,2]
[367226298,1750707055591,-460.0,0.0002063,2]
[367226299,1750707055600,-460.0,0.0002063,2]
[367226300,1750707055610,-460.0,0.0002063,2]
[367226301,1750707055620,-460.0,0.0002063,2]
[367226302,1750707055630,-460.0,0.0002063,2]
[367226303,1750707055639,-1831.18,0.0002063,2]
[367226304,1750707055648,-532.28,0.0002063,2]
[367226305,1750707055658,-664.54,0.0002063,2]
[367226306,1750707055667,-460.0,0.0002063,2]
[367226307,1750707055677,-460.0,0.0002063,2]
[367226308,1750707055687,-549.41,0.0002063,2]
[367226309,1750707055696,-460.0,0.0002063,2]
[367226310,1750707055706,-1376.04,0.0002063,2]
[367226311,1750707055716,-460.0,0.0002063,2]
[367226312,1750707055725,-853.68188652,0.0002063,2]
[367226313,1750707081957,358.0753916,0.00018294,2]
[367226314,1750707087194,-172.95726921,0.00019169,2]
[367226315,1750707121971,-150.0,0.00019169,2]
[367226316,1750707196273,24900.0,0.0001826,2]
[367226317,1750707209519,5000.0,0.0001911,2]
[367226319,1750707288407,-300.0,0.00019169,2]
[367226320,1750707311247,-219.63599433,0.00019157,2]
[367226322,1750707420839,-151.0,0.00019133,2]
[367226324,1750707515307,375.944388,0.00018255,2]
[367226325,1750707594811,-191.87898509,0.00019133,2]
[367226326,1750707603382,-191.90898509,0.00019133,2]
[367226327,1750707629769,-265.21202982,0.00019133,2]
[367226328,1750707629793,-1612.35450961,0.00019153,2]
[367226329,1750707629813,-3122.43346057,0.00019166,2]
[367226330,1750707630672,-257.09101491,0.00019166,2]
[367226331,1750707639563,-500.0,0.00019166,2]
[367226332,1750707641448,5000.0,0.0001911,2]
[367226333,1750707648499,-122.44814393,0.00019166,2]
[367226334,1750707648523,-124.28255843,0.00019168,2]
[367226335,1750707652698,-175.71744157,0.00019168,2]
[367226336,1750707652924,-141.06070396,0.00019168,2]
[367226337,1750707656912,151.0,0.000191,2]
[367226338,1750707659255,-158.93929604,0.00019168,2]
[367226339,1750707659278,-141.06070396,0.00019168,2]
[367226340,1750707664272,-230.5369903,0.00019167,2]
[367226341,1750707685814,-69.4630097,0.00019167,2]
[367226342,1750707685843,-300.0,0.00019167,2]
[367226343,1750707685872,-1058.93929604,0.00019168,2]
[367226344,1750707685900,-500.0,0.00019168,2]
[367226345,1750707685928,-500.0,0.00019168,2]
[367226346,1750707685960,-500.94093473,0.00019168,2]
[367226347,1750707685989,-500.0,0.00019168,2]
[367226348,1750707686017,-171.85124347,0.00019168,2]
[367226349,1750707686047,-500.0,0.00019168,2]
[367226350,1750707686075,-500.0,0.00019168,2]
[367226351,1750707686105,-500.0,0.00019168,2]
[367226352,1750707686224,-500.0,0.00019168,2]
[367226353,1750707686253,-225.58133211,0.00019168,2]
[367226354,1750707686281,-500.0,0.00019168,2]
[367226355,1750707686309,-500.0,0.00019168,2]
[367226356,1750707686339,-500.0,0.00019168,2]
[367226357,1750707686367,-500.0,0.00019168,2]
[367226358,1750707686395,-500.0,0.00019168,2]
[367226359,1750707686423,-500.0,0.00019168,2]
[367226360,1750707686451,-500.0,0.00019168,2]
[367226361,1750707686480,-500.0,0.00019168,2]
[367226362,1750707686508,-500.0,0.00019168,2]
[367226363,1750707686609,-500.0,0.00019168,2]
[367226364,1750707686636,-246.73070236,0.00019168,2]
[367226365,1750707686664,-500.0,0.00019168,2]
[367226366,1750707686693,-500.0,0.00019168,2]
[367226367,1750707686895,-500.0,0.00019168,2]
[367226368,1750707686924,-524.3891721,0.00019168,2]
[367226369,1750707686954,-462.51159632,0.00019168,2]
[367226370,1750707686981,-500.0,0.00019168,2]
[367226371,1750707687010,-373.93206508,0.00019168,2]
[367226372,1750707687041,-500.0,0.00019168,2]
[367226373,1750707687069,-500.0,0.00019168,2]
[367226374,1750707687192,-500.0,0.00019168,2]
[367226375,1750707687220,-500.0,0.00019168,2]
[367226376,1750707687248,-500.0,0.00019168,2]
[367226377,1750707687276,-500.0,0.00019168,2]
[367226378,1750707687303,-500.0,0.00019168,2]
[367226379,1750707687333,-500.0,0.00019168,2]
[367226380,1750707687366,-500.0,0.00019168,2]
[367226381,1750707687395,-500.0,0.00019168,2]
[367226382,1750707687425,-591.15917244,0.00019168,2]
[367226383,1750707687454,-500.0,0.00019168,2]
[367226384,1750707687484,-17.68165512,0.00019168,2]
[367226385,1750707687615,-482.31834488,0.00019168,2]
[367226386,1750707687644,-500.0,0.00019168,2]
[367226387,1750707687677,-500.0,0.00019168,2]
[367226388,1750707687705,-1088.42952156,0.00019169,2]
[367226389,1750707687840,-5141.49573288,0.00019169,2]
[367226390,1750707687884,-160.0,0.00019169,2]
[367226391,1750707687991,-257.00853424,0.00019169,2]
[367226392,1750707688020,-67.31722044,0.00019169,2]
[367226393,1750707688048,-548.71,0.00019247,3]
[367226394,1750707688075,-274.35,0.00019247,3]
[367226395,1750707688105,-823.1,0.00019247,3]
[367226396,1750707688135,-1281.1949811,0.00019252,2]
[367226397,1750707688164,-1281.1949811,0.00019252,2]
[367226398,1750707688192,-500.0,0.00019252,2]
[367226399,1750707688291,-1281.1949811,0.00019252,2]
[367226400,1750707688321,-1281.1949811,0.00019252,2]
[367226401,1750707688352,-1281.1949811,0.00019252,2]
[367226402,1750707688383,-1281.1949811,0.00019252,2]
[367226403,1750707688418,-38.7588988,0.00019252,2]
[367226404,1750707688516,-372.9223536,0.00019252,2]
[367226405,1750707688545,-500.0,0.00019252,2]
[367226406,1750707688575,-1281.1949811,0.00019252,2]
[367226407,1750707688606,-500.0,0.00019252,2]
[367226408,1750707688638,-1281.1949811,0.00019252,2]
[367226409,1750707688667,-1281.1949811,0.00019252,2]
[367226410,1750707688801,-1281.1949811,0.00019252,2]
[367226411,1750707688832,-1281.1949811,0.00019252,2]
[367226412,1750707688862,-1281.1949811,0.00019252,2]
[367226413,1750707688894,-1281.1949811,0.00019252,2]